bitfinex/quotes_SOLUSD_20260222
["timestamp","ask_amount","ask_price","bid_price","bid_amount"]
[1771800401132,3.69383402,83.635,83.591,0.45542094]
[1771800401433,0.46289645,83.633,83.593,0.45542094]
[1771800402214,0.46289645,83.639,83.593,0.45542094]
[1771800402415,0.46289645,83.639,83.601,0.45542094]
[1771800404835,0.46289645,83.643,83.603,0.45542094]
[1771800405934,0.46289645,83.643,83.61,3.07995721]
[1771800406120,0.46289645,83.643,83.611,0.45542094]
[1771800409435,0.46289645,83.643,83.613,0.45542094]
[1771800411332,0.46289645,83.659,83.614,11.95971966]
[1771800411538,0.28432314,83.658,83.615,0.45542094]
[1771800411838,3.07995721,83.66,83.615,0.45542094]
[1771800411839,0.46289645,83.654,83.615,0.45542094]
[1771800413627,0.46289645,83.654,83.617,0.45542094]
[1771800414126,0.28432314,83.655,83.621,0.45542094]
[1771800414527,0.46289645,83.661,83.621,0.45542094]
[1771800414929,0.46289645,83.664,83.621,0.45542094]
[1771800415540,0.46289645,83.659,83.621,0.45542094]
[1771800415740,0.46289645,83.659,83.623,0.45542094]
[1771800416441,0.46289645,83.664,83.623,0.45542094]
[1771800416618,3.17995721,83.67,83.631,0.45542094]
[1771800416619,0.1,83.67,83.631,0.45542094]
[1771800417234,0.56289645,83.67,83.631,0.45542094]
[1771800417641,0.1,83.67,83.641,0.45542094]
[1771800418638,0.46289645,83.669,83.641,0.45542094]
[1771800420333,0.46289645,83.669,83.643,0.45542094]
[1771800422651,0.1,83.67,83.645,0.45542094]
[1771800423324,0.46289645,83.669,83.645,0.45542094]
[1771800423529,0.46289645,83.669,83.644,9.98904113]
[1771800426346,0.46289645,83.669,83.638,11.95628781]
[1771800427848,0.46289645,83.669,83.622,59.79287747]
[1771800427849,0.46289645,83.669,83.631,0.45542094]
[1771800429052,0.46289645,83.669,83.633,0.49854303]
[1771800430847,0.46050571,83.659,83.632,11.95714559]
[1771800436464,0.46050571,83.659,83.628,0.47525252]
[1771800438145,0.46289645,83.649,83.621,11.95862216]
[1771800438549,0.46289645,83.649,83.621,12.43387468]
[1771800439052,0.46289645,83.649,83.622,0.47525252]
[1771800440344,0.46289645,83.649,83.623,11.95843248]
[1771800440953,0.46289645,83.649,83.623,12.433685]
[1771800442442,0.46289645,83.649,83.624,0.47525252]
[1771800443656,0.46289645,83.649,83.625,11.95814648]
[1771800444967,0.46289645,83.649,83.625,0.47525252]
[1771800446446,0.46289645,83.649,83.612,0.47525252]
[1771800452458,0.46289645,83.649,83.614,0.47525252]
[1771800456570,0.46289645,83.649,83.611,29.90033915]
[1771800456571,0.46289645,83.648,83.615,12.43482915]
[1771800456879,0.46289645,83.648,83.616,0.47525252]
[1771800457976,0.46289645,83.639,83.616,0.47525252]
[1771800461185,0.46289645,83.643,83.618,0.48412233]
[1771800464489,0.46289645,83.643,83.62,0.48412233]
[1771800464889,3.69383402,83.669,83.619,11.95900453]
[1771800464890,0.1,83.68,83.631,0.48412233]
[1771800465193,0.46289645,83.679,83.641,0.48412233]
[1771800466404,0.1,83.68,83.643,0.48412233]
[1771800467194,0.1,83.68,83.651,0.48412233]
[1771800469986,0.1,83.68,83.64,3.07722934]
[1771800470290,0.1,83.68,83.644,0.48412233]
[1771800470599,0.1,83.68,83.651,0.48412233]
[1771800471293,0.1,83.68,83.653,0.48412233]
[1771800472699,0.1,83.68,83.655,0.48412233]
[1771800473792,0.1,83.68,83.64,3.07722934]
[1771800473793,0.1,83.68,83.661,0.48412233]
[1771800474176,0.74606531,83.694,83.656,41.83800324]
[1771800474391,0.49315528,83.693,83.657,0.48412233]
[1771800476799,0.49315528,83.693,83.659,0.48412233]
[1771800477704,3.07722934,83.7,83.659,0.48412233]
[1771800477902,3.07722934,83.7,83.658,41.83700302]
[1771800477903,0.49315528,83.699,83.661,0.48412233]
[1771800479222,0.49315528,83.699,83.662,11.95285792]
[1771800479385,0.49315528,83.699,83.663,0.48412233]
[1771800481308,0.49315528,83.699,83.665,0.48412233]
[1771800483008,0.49315528,83.699,83.667,0.48412233]
[1771800484086,0.49315528,83.703,83.667,0.48412233]
[1771800485006,0.49315528,83.703,83.669,0.48412233]
[1771800486801,0.49315528,83.709,83.671,0.48412233]
[1771800487102,0.1,83.71,83.681,0.48412233]
[1771800487993,0.59315528,83.71,83.681,0.48412233]
[1771800488704,0.1,83.71,83.681,0.48412233]
[1771800488902,0.1,83.71,83.655,59.76883448]
[1771800488903,0.1,83.71,83.691,0.45366808]
[1771800490507,0.1,83.71,83.682,11.95000119]
[1771800490508,0.1,83.71,83.692,11.94857334]
[1771800490710,0.1,83.71,83.693,0.45366808]
[1771800493108,0.1,83.71,83.694,11.94828781]
[1771800493306,0.1,83.71,83.695,0.45366808]
[1771800494108,0.48883493,83.729,83.701,0.45366808]
[1771800495308,0.48883493,83.729,83.703,0.45366808]
[1771800496695,0.48883493,83.729,83.672,59.75661996]
[1771800496696,0.4752304,83.719,83.682,0.48754818]
[1771800497218,0.4752304,83.709,83.677,0.48754818]
[1771800497419,0.4752304,83.707,83.677,0.48754818]
[1771800499236,0.4752304,83.707,83.679,0.48754818]
[1771800501424,0.4752304,83.707,83.674,29.87759733]
[1771800501425,0.4752304,83.707,83.681,0.48754818]
[1771800502512,0.4752304,83.707,83.683,0.48754818]
[1771800504015,0.4752304,83.707,83.682,11.95000119]
[1771800504016,0.4752304,83.707,83.685,0.48754818]
[1771800504716,0.4752304,83.719,83.685,0.48754818]
[1771800506600,3.17722934,83.73,83.68,3.07722934]
[1771800506601,3.97815716,83.726,83.687,0.48754818]
[1771800507008,0.4752304,83.724,83.69,3.07722934]
[1771800507208,0.4752304,83.724,83.691,0.48754818]
[1771800507805,0.4752304,83.722,83.692,0.48754818]
[1771800508024,0.1,83.73,83.701,0.48754818]
[1771800508222,0.1,83.73,83.711,0.48754818]
[1771800508826,0.5752304,83.73,83.711,0.48754818]
[1771800509006,3.69383402,83.754,83.691,41.8204137]
[1771800509007,59.67140405,83.793,83.691,41.8204137]
[1771800509212,3.07722934,83.71,83.681,0.49832854]
[1771800509413,0.27841849,83.699,83.657,11.95357232]
[1771800509716,11.94771679,83.698,83.651,11.95442971]
[1771800509909,0.27841849,83.709,83.66,3.07722934]
[1771800510229,0.27841849,83.709,83.68,3.07722934]
[1771800510444,11.94514788,83.716,83.67,3.07722934]
[1771800510612,0.27841849,83.715,83.67,3.07722934]
[1771800510817,0.27841849,83.715,83.66,3.07722934]
[1771800511315,0.27841849,83.709,83.661,0.48754818]
[1771800511512,41.80801758,83.716,83.661,0.48754818]
[1771800511513,0.27841849,83.699,83.661,0.48754818]
[1771800511929,0.27841849,83.699,83.663,0.48754818]
[1771800512931,11.94771679,83.698,83.663,0.48754818]
[1771800513232,0.27841849,83.697,83.663,0.48754818]
[1771800513828,0.1421661,83.697,83.663,0.48754818]
[1771800514311,11.94757404,83.699,83.665,0.5]
[1771800515332,12.23046991,83.709,83.667,0.5]
[1771800515730,42.09583683,83.709,83.667,0.5]
[1771800520340,42.09583683,83.709,83.668,0.5]
[1771800522740,3.07722934,83.7,83.668,0.5]
[1771800523538,42.09583683,83.709,83.67,0.5]
[1771800524132,3.07722934,83.7,83.664,11.95250101]
[1771800524340,11.94757404,83.699,83.664,0.5]
[1771800528648,11.94757404,83.699,83.651,41.84050399]
[1771800528649,11.94757404,83.699,83.666,0.5]
[1771800532240,11.94757404,83.699,83.667,11.95214361]
[1771800532440,11.94757404,83.699,83.668,0.5]
[1771800534450,11.94757404,83.699,83.666,0.5]
[1771800539955,11.94757404,83.699,83.668,0.5]
[1771800542856,3.0761944,83.69,83.668,0.5]
[1771800544463,29.86893511,83.699,83.668,0.5]
[1771800545465,41.81650915,83.699,83.668,0.5]
[1771800546865,3.0761944,83.69,83.668,0.5]
[1771800553058,11.94900166,83.689,83.665,0.3]
[1771800553368,3.0761944,83.68,83.665,0.3]
[1771800555161,3.0761944,83.68,83.651,0.5]
[1771800555466,3.0761944,83.68,83.61,59.80115813]
[1771800555467,3.0761944,83.66,83.629,0.5]
[1771800558258,3.0761944,83.66,83.631,0.5]
[1771800559060,11.95328655,83.659,83.631,0.5]
[1771800560158,35.97,83.751,83.632,0.5]
[1771800560360,2.47215037,103.98,83.66,3.0761944]
[1771800560361,3.0761944,83.71,83.66,3.0761944]
[1771800560565,3.0761944,83.71,83.661,0.5]
[1771800560751,0.28432314,83.709,83.661,0.5]
[1771800561064,3.0761944,83.71,83.661,0.5]
[1771800562270,15.02219846,83.71,83.663,0.5]
[1771800564165,0.28432314,83.709,83.663,0.5]
[1771800564467,0.28432314,83.707,83.665,0.5]
[1771800565970,0.28432314,83.705,83.667,0.5]
[1771800567675,3.0761944,83.7,83.661,0.5]
[1771800568170,3.0761944,83.69,83.661,0.5]
[1771800569468,0.28432314,83.698,83.661,0.5]
[1771800572380,0.28432314,83.696,83.661,0.5]
[1771800574467,0.28432314,83.694,83.661,0.5]
[1771800575672,0.28432314,83.692,83.661,0.5]
[1771800581165,0.28432314,83.698,83.661,0.5]
[1771800581680,0.28432314,83.694,83.661,0.5]
[1771800581869,0.28432314,83.694,83.663,0.5]
[1771800583585,0.28432314,83.692,83.663,0.5]
[1771800587484,11.94871611,83.691,83.663,0.5]
[1771800611085,0.02181111,83.69,83.663,0.5]
[1771800629619,0.1166706,83.669,83.636,0.51014395]
[1771800629818,41.82050638,83.691,83.624,0.51014395]
[1771800629819,0.1166706,83.659,83.624,0.51014395]
[1771800630024,3.69383402,83.677,83.619,0.51014395]
[1771800630025,0.1166706,83.649,83.619,0.51014395]
[1771800630906,0.1166706,83.649,83.62,0.51014395]
[1771800631520,0.12549765,83.648,83.62,0.51014395]
[1771800633429,0.12549765,83.648,83.614,0.51014395]
[1771800635924,0.12549765,83.648,83.616,0.51014395]
[1771800636120,0.14669325,83.645,83.601,0.51014395]
[1771800636421,0.14669325,83.629,83.601,0.51014395]
[1771800637514,0.15078742,83.628,83.601,0.51014395]
[1771800642030,0.28432314,83.644,83.611,0.56172682]
[1771800642333,0.17438362,83.644,83.611,0.56172682]
[1771800642524,0.28432314,83.641,83.611,0.56172682]
[1771800642838,0.17438362,83.651,83.621,0.56172682]
[1771800643440,0.17438362,83.651,83.623,0.56172682]
[1771800643644,0.17815974,83.673,83.631,0.56172682]
[1771800644036,0.17815974,83.673,83.641,0.56172682]
[1771800645335,11.95057243,83.678,83.642,11.95571602]
[1771800645537,0.18558237,83.677,83.643,0.56172682]
[1771800646241,11.95057243,83.678,83.643,0.56172682]
[1771800646429,0.18922987,83.694,83.661,0.56172682]
[1771800646633,0.18922987,83.695,83.661,0.56172682]
[1771800646942,0.18922987,83.691,83.661,0.56172682]
[1771800647527,0.28432314,83.692,83.662,0.56172682]
[1771800647846,0.47715861,83.692,83.662,0.56172682]
[1771800649645,11.94871611,83.691,83.662,0.56172682]
[1771800650039,0.47715861,83.692,83.662,0.56172682]
[1771800651149,11.94871611,83.691,83.662,0.56172682]
[1771800651442,0.20684846,83.69,83.662,0.56172682]
[1771800653535,11.94900166,83.689,83.662,0.56172682]
[1771800653951,0.21361583,83.688,83.662,0.56172682]
[1771800657752,0.56809666,83.686,83.623,0.28432314]
[1771800657945,0.56809666,83.659,83.61,3.07571099]
[1771800658455,0.56809666,83.649,83.6,3.07571099]
[1771800658636,0.56809666,83.639,83.59,3.27571099]
[1771800658831,0.56809666,83.639,83.6,3.07571099]
[1771800659850,0.56809666,83.637,83.603,0.56172682]
[1771800661849,0.56809666,83.637,83.605,0.56172682]
[1771800663548,11.95657372,83.636,83.605,0.56172682]
[1771800665058,0.56809666,83.635,83.607,0.56172682]
[1771800666841,0.56809666,83.635,83.6,0.56172682]
[1771800667947,0.28432314,83.632,83.6,0.56172682]
[1771800668263,0.56809666,83.631,83.6,0.56172682]
[1771800670163,0.60800935,83.655,83.602,0.58010968]
[1771800670344,0.60800935,83.665,83.611,0.58010968]
[1771800670743,0.60800935,83.659,83.611,0.58010968]
[1771800671246,3.07571099,83.65,83.611,0.58010968]
[1771800671453,0.60800935,83.641,83.611,0.58010968]
[1771800672358,0.60800935,83.639,83.611,0.58010968]
[1771800674561,0.60800935,83.637,83.611,0.58010968]
[1771800679063,0.60800935,83.637,83.613,0.58920963]
[1771800680476,0.59833003,83.636,83.613,0.58920963]
[1771800681166,0.59833003,83.635,83.592,0.58920963]
[1771800685354,0.59833003,83.633,83.594,0.58920963]
[1771800691778,0.59833003,83.633,83.596,0.58920963]
[1771800693479,0.59833003,83.633,83.597,11.96215175]
[1771800693683,0.59833003,83.633,83.598,0.58920963]
[1771800694086,0.59833003,83.644,83.601,0.58920963]
[1771800694881,0.59833003,83.644,83.611,0.58920963]
[1771800695263,11.95471899,83.649,83.611,0.58920963]
[1771800695464,0.59833003,83.656,83.622,0.58920963]
[1771800695664,0.59833003,83.656,83.624,0.58920963]
[1771800696177,11.9538581,83.655,83.624,0.58920963]
[1771800698877,11.9538581,83.655,83.625,11.95814648]
[1771800699474,12.49911311,83.655,83.626,0.5723978]
[1771800699882,0.54525501,83.655,83.626,0.5723978]
[1771800700382,12.49911311,83.655,83.626,0.5723978]
[1771800701386,29.87992872,83.669,83.628,0.5723978]
[1771800701387,0.54525501,83.664,83.628,0.5723978]
[1771800703392,3.69383402,83.684,83.56,3.07571099]
[1771800703393,0.54525501,83.649,83.619,0.5723978]
[1771800705592,0.54525501,83.647,83.619,0.5723978]
[1771800705888,0.54525501,83.647,83.62,11.95886151]
[1771800706092,0.54525501,83.647,83.621,0.5723978]
[1771800709412,0.54525501,83.645,83.621,0.5723978]
[1771800710486,0.54525501,83.643,83.611,0.5723978]
[1771800711075,0.54525501,83.639,83.606,0.5723978]
[1771800712888,0.54525501,83.633,83.595,0.5723978]
[1771800714580,0.54525501,83.631,83.595,0.5723978]
[1771800716076,0.54525501,83.631,83.597,0.5723978]
[1771800716796,0.54525501,83.629,83.599,0.5723978]
[1771800722478,0.54525501,83.627,83.599,0.5723978]
[1771800726195,0.54525501,83.627,83.601,0.5723978]
[1771800726589,35.93,83.703,83.6,15.04136514]
[1771800726590,0.28432314,83.659,83.611,0.5723978]
[1771800726786,0.28432314,83.649,83.611,0.5723978]
[1771800727184,3.07964266,83.65,83.611,0.5723978]
[1771800727601,0.28432314,83.649,83.611,0.5723978]
[1771800728179,0.28432314,83.647,83.611,0.5723978]
[1771800728503,0.12436254,83.646,83.611,0.5723978]
[1771800729793,0.12436254,83.646,83.613,0.55035637]
[1771800731515,0.12068738,83.644,83.613,0.55035637]
[1771800736811,0.11370838,83.643,83.613,0.55035637]
[1771800758343,0.28432314,83.658,83.614,0.54861828]
[1771800758524,0.28432314,83.658,83.621,0.54861828]
[1771800759107,25.50654119,83.667,83.622,0.53643081]
[1771800759318,47.7612042,83.75,83.607,29.90171188]
[1771800759319,3.07964266,83.69,83.646,0.53643081]
[1771800759514,3.07964266,83.68,83.646,0.53643081]
[1771800759722,0.52642821,83.669,83.63,3.07964266]
[1771800760322,0.52642821,83.667,83.63,15.03698324]
[1771800761920,0.52642821,83.667,83.631,0.53643081]
[1771800762326,3.69383402,83.694,83.631,0.53643081]
[1771800762327,0.52642821,83.665,83.631,0.53643081]
[1771800765703,0.52642821,83.663,83.631,0.53643081]
[1771800769232,11.95285792,83.662,83.631,0.53643081]
[1771800769409,0.52642821,83.661,83.631,0.53643081]
[1771800769939,0.52642821,83.661,83.632,0.53643081]
[1771800771338,0.52642821,83.659,83.632,0.53643081]
[1771800771837,0.52642821,83.659,83.634,0.53643081]
[1771800773443,0.52642821,83.657,83.634,0.53643081]
[1771800774423,11.95275391,83.663,83.635,0.53643081]
[1771800774721,0.52642821,83.662,83.635,0.53643081]
[1771800775529,11.9530008,83.661,83.635,0.53643081]
[1771800775826,0.52642821,83.66,83.635,0.53643081]
[1771800776533,11.95328655,83.659,83.635,0.53643081]
[1771800776844,0.52642821,83.658,83.635,0.53643081]
[1771800780727,0.52642821,83.662,83.635,0.53643081]
[1771800782652,11.9530008,83.661,83.635,0.53643081]
[1771800782845,12.47942901,83.661,83.635,0.53643081]
[1771800783054,0.52642821,83.66,83.635,0.53643081]
[1771800784478,11.95328655,83.659,83.635,0.53643081]
[1771800785340,0.52642821,83.658,83.635,0.53643081]
[1771800792938,0.47631279,83.656,83.635,0.53643081]
[1771800797253,11.9538581,83.655,83.635,0.53643081]
[1771800797433,0.49341451,83.654,83.62,11.95875051]
[1771800798761,0.49341451,83.654,83.611,11.96008358]
[1771800799067,3.07791119,83.65,83.611,11.96008358]
[1771800799242,0.49341451,83.649,83.611,11.96008358]
[1771800799442,0.49341451,83.647,83.602,0.51347265]
[1771800799844,0.49341451,83.647,83.61,3.07791119]
[1771800800054,0.49341451,83.647,83.611,0.51347265]
[1771800802368,0.49341451,83.645,83.611,0.51347265]
[1771800809353,3.07791119,83.65,83.611,0.51347265]
[1771800809354,0.49341451,83.643,83.611,0.51347265]
[1771800809879,0.49341451,83.636,83.602,0.51347265]
[1771800810070,0.49341451,83.636,83.593,0.51347265]
[1771800810255,0.49341451,83.629,83.593,0.51347265]
[1771800811561,0.49341451,83.627,83.595,0.51347265]
[1771800813677,0.49341451,83.625,83.595,0.51347265]
[1771800815680,0.49341451,83.617,83.59,0.2]
[1771800819279,0.45697796,83.615,83.59,0.2]
[1771800821864,0.45697796,83.613,83.59,0.2]
[1771800824489,0.45697796,83.611,83.59,0.66763111]
[1771800825781,0.45697796,83.611,83.59,0.2]
[1771800826360,0.45697796,83.611,83.591,0.46763111]
[1771800827182,11.95869365,83.622,83.593,0.46763111]
[1771800829509,0.45697796,83.621,83.595,0.46763111]
[1771800834890,0.45697796,83.619,83.597,0.46763111]
[1771800835280,0.45697796,83.617,83.59,0.2]
[1771800835684,0.45697796,83.617,83.59,0.66763111]
[1771800836887,0.45697796,83.615,83.59,0.66763111]
[1771800838593,0.45697796,83.613,83.591,0.46763111]
[1771800841387,0.45697796,83.611,83.591,0.46763111]
[1771800843687,11.96029183,83.61,83.591,0.46763111]
[1771800843889,0.45697796,83.609,83.591,0.46763111]
[1771800847402,0.45697796,83.613,83.591,0.46763111]
[1771800848606,0.48642724,83.612,83.591,0.46763111]
[1771800850588,0.48642724,83.61,83.591,0.46763111]
[1771800855986,0.47322493,83.625,83.591,0.46763111]
[1771800856191,0.47322493,83.625,83.593,0.46049265]
[1771800857504,12.43079945,83.629,83.593,0.46049265]
[1771800857891,0.47322493,83.628,83.593,0.46049265]
[1771800858305,0.47322493,83.632,83.6,3.08104698]
[1771800858507,11.95657372,83.636,83.601,0.46049265]
[1771800861707,0.47322493,83.636,83.602,11.96143632]
[1771800861898,0.47322493,83.636,83.603,0.46049265]
[1771800864113,0.47322493,83.646,83.605,0.46049265]
[1771800865114,0.47322493,83.648,83.611,0.46049265]
[1771800865319,0.47322493,83.652,83.621,0.46049265]
[1771800866993,0.47322493,83.652,83.623,0.46049265]
[1771800868829,0.47322493,83.652,83.622,11.95857549]
[1771800868830,0.47322493,83.665,83.625,0.46049265]
[1771800868998,3.08104698,83.67,83.631,0.46049265]
[1771800869198,0.47322493,83.669,83.631,0.46049265]
[1771800870908,0.47322493,83.667,83.633,0.46049265]
[1771800872916,0.47322493,83.665,83.633,0.46049265]
[1771800873119,0.47322493,83.665,83.635,0.46049265]
[1771800874612,0.47322493,83.663,83.635,0.46049265]
[1771800878030,0.47322493,83.661,83.635,0.46049265]
[1771800881011,11.95314367,83.66,83.635,0.46049265]
[1771800881214,0.45908786,83.659,83.635,0.46049265]
[1771800882731,0.45908786,83.697,83.651,0.45518827]
[1771800884931,0.45908786,83.697,83.661,0.45518827]
[1771800887630,0.45908786,83.697,83.662,11.95285792]
[1771800887928,0.45908786,83.697,83.663,0.45518827]
[1771800889819,0.45908786,83.697,83.665,0.45518827]
[1771800891616,11.94828781,83.694,83.665,0.45518827]
[1771800891931,0.45908786,83.693,83.665,0.45518827]
[1771800895327,0.45908786,83.691,83.665,0.45518827]
[1771800897052,0.45908786,83.691,83.666,11.95228647]
[1771800897335,0.45908786,83.691,83.667,0.45518827]
[1771800901031,0.45908786,83.691,83.669,0.45518827]
[1771800903149,0.45908786,83.696,83.671,0.45518827]
[1771800904342,0.45908786,83.689,83.666,0.45518827]
[1771800905334,0.45908786,83.687,83.666,0.45518827]
[1771800907944,0.45908786,83.685,83.666,0.45518827]
[1771800914634,0.49613623,83.683,83.666,0.45518827]
[1771800915444,0.49613623,83.709,83.661,0.04267619]
[1771800915651,0.4786619,83.706,83.661,0.04267619]
[1771800916036,11.80174642,83.71,83.661,0.04267619]
[1771800916246,11.80174642,83.71,83.671,0.04267619]
[1771800916247,0.4786619,83.709,83.671,0.04267619]
[1771800917559,0.4786619,83.705,83.671,0.04267619]
[1771800918556,0.4786619,83.699,83.657,0.04267619]
[1771800918859,0.4786619,83.689,83.657,0.04267619]
[1771800919934,11.94914444,83.688,83.657,0.04267619]
[1771800920140,0.4786619,83.687,83.657,0.04267619]
[1771800922158,3.07567064,83.69,83.657,0.04267619]
[1771800922159,0.4786619,83.685,83.657,0.04267619]
[1771800924470,11.94971559,83.684,83.657,0.04267619]
[1771800924759,0.4786619,83.683,83.657,0.04267619]
[1771800925890,11.95000119,83.682,83.657,0.04267619]
[1771800926066,0.4786619,83.681,83.657,0.04267619]
[1771800926970,0.4786619,83.681,83.641,41.84550638]
[1771800927145,0.4786619,83.679,83.642,0.04267619]
[1771800939161,11.95057243,83.678,83.642,0.04267619]
[1771800939380,0.4786619,83.677,83.642,0.04267619]
[1771800939980,0.4786619,83.677,83.651,0.04267619]
[1771800942180,0.4786619,83.677,83.651,11.95442971]
[1771800942367,0.4786619,83.677,83.652,0.04267619]
[1771800942572,11.94923885,83.688,83.652,0.04267619]
[1771800942775,2.47215037,103.31,83.671,0.04267619]
[1771800942776,0.4786619,83.707,83.671,0.04267619]
[1771800944379,0.4786619,83.705,83.671,0.04267619]
[1771800947384,0.4786619,83.703,83.671,0.04267619]
[1771800948272,11.94714582,83.702,83.671,0.04267619]
[1771800948579,0.4786619,83.701,83.671,0.04267619]
[1771800949488,0.4786619,83.699,83.671,0.04267619]
[1771800962482,0.4786619,83.697,83.671,0.04267619]
[1771800970892,0.1,83.71,83.681,0.04267619]
[1771800971308,0.1,83.71,83.691,0.04267619]
[1771800972501,0.1,83.71,83.691,11.94871611]
[1771800972706,0.1,83.71,83.692,0.04267619]
[1771800975106,0.1,83.73,83.692,0.04267619]
[1771800975410,0.1,83.73,83.701,0.49259291]
[1771800976512,0.1,83.73,83.703,0.49991951]
[1771800977209,0.47580115,83.729,83.703,0.49991951]
[1771800977509,0.47580115,83.729,83.691,29.87179027]
[1771800977510,0.47580115,83.729,83.705,0.49991951]
[1771800977695,0.47580115,83.728,83.705,0.49991951]
[1771800986020,0.47580115,83.728,83.707,0.49991951]
[1771800988117,0.47580115,83.727,83.707,0.49991951]
[1771800998025,0.47580115,83.725,83.707,0.49991951]
[1771801017420,0.47580115,83.725,83.703,11.94698635]
[1771801017622,0.4615965,83.723,83.682,0.48713386]
[1771801018030,0.4615965,83.719,83.681,11.95014399]
[1771801021219,41.80701879,83.718,83.677,0.48713386]
[1771801021525,41.80701879,83.718,83.67,3.55964665]
[1771801021526,0.4615965,83.709,83.67,3.55964665]
[1771801021726,0.4615965,83.709,83.671,0.48713386]
[1771801025948,0.4615965,83.707,83.672,12.43856325]
[1771801026326,0.4615965,83.707,83.673,0.48713386]
[1771801030444,11.94657491,83.706,83.673,0.48713386]
[1771801030751,0.48092493,83.705,83.673,0.48713386]
[1771801037036,0.47684353,83.703,83.664,0.48915108]
[1771801037737,0.47684353,83.697,83.659,0.48915108]
[1771801038750,0.47684353,83.697,83.661,0.48915108]
[1771801038932,0.47684353,83.695,83.661,0.48915108]
[1771801039540,0.47684353,83.695,83.67,3.07251279]
[1771801039857,0.47684353,83.695,83.671,0.48915108]
[1771801040258,0.47684353,83.693,83.661,0.48915108]
[1771801041360,0.47684353,83.691,83.661,0.48915108]
[1771801045354,0.47684353,83.689,83.661,0.48915108]
[1771801047463,0.47684353,83.692,83.663,0.48915108]
[1771801050367,0.47684353,83.692,83.664,11.95257219]
[1771801050667,0.47684353,83.692,83.665,0.48915108]
[1771801052267,0.47684353,83.692,83.667,0.48915108]
[1771801055264,11.94871611,83.691,83.662,0.48915108]
[1771801055473,0.47684353,83.69,83.662,0.48915108]
[1771801059153,0.47684353,83.69,83.664,0.46519072]
[1771801062251,0.47684353,83.69,83.665,11.95242933]
[1771801062459,0.47684353,83.69,83.666,0.46519072]
[1771801074382,0.46739555,83.696,83.668,0.46519072]
[1771801081582,0.46739555,83.694,83.668,0.46519072]
[1771801083379,0.46739555,83.692,83.668,0.46519072]
[1771801085684,0.46739555,83.69,83.668,0.46519072]
[1771801096201,0.14862561,83.69,83.668,0.46519072]
[1771801108312,2.47215037,103.76,83.65,3.07555781]
[1771801108313,0.46517877,83.727,83.681,0.46338046]
[1771801108521,0.46517877,83.727,83.691,0.46338046]
[1771801108693,0.46517877,83.727,83.701,0.46338046]
[1771801110196,0.46517877,83.727,83.702,11.94714582]
[1771801110396,0.46517877,83.727,83.703,0.46338046]
[1771801112914,0.46517877,83.727,83.705,0.46338046]
[1771801113293,0.46517877,83.731,83.705,0.46338046]
[1771801113492,0.46517877,83.736,83.706,0.46338046]
[1771801115306,0.46517877,83.736,83.707,11.94643219]
[1771801115610,0.46517877,83.736,83.708,0.46338046]
[1771801118607,0.46517877,83.736,83.71,0.47529227]
[1771801119218,0.46517877,83.736,83.711,0.47529227]
[1771801119995,0.46517877,83.736,83.712,11.94571865]
[1771801120219,0.46517877,83.736,83.713,0.47529227]
[1771801121402,0.46517877,83.736,83.715,0.47529227]
[1771801121713,0.57595202,83.74,83.715,0.47529227]
[1771801123918,0.57595202,83.74,83.717,0.47529227]
[1771801126603,0.57595202,83.74,83.719,0.47529227]
[1771801129318,0.57595202,83.74,83.721,0.47529227]
[1771801130523,0.57595202,83.74,83.722,12.41958409]
[1771801131103,0.57595202,83.74,83.723,0.47529227]
[1771801133123,0.57595202,83.74,83.724,11.94400649]
[1771801135924,0.57595202,83.74,83.724,0.47529227]
[1771801136418,0.57595202,83.74,83.712,0.47529227]
[1771801137324,0.57595202,83.74,83.714,0.47529227]
[1771801137924,0.57595202,83.74,83.721,0.47529227]
[1771801139734,0.57595202,83.74,83.723,0.47529227]
[1771801142031,0.57595202,83.74,83.725,0.47529227]
[1771801144337,0.57595202,83.74,83.724,11.94400649]
[1771801145241,0.57595202,83.74,83.7,0.47529227]
[1771801145433,0.47595202,83.738,83.701,0.47529227]
[1771801147431,0.47595202,83.736,83.702,12.42243809]
[1771801148428,11.94243745,83.735,83.702,12.42243809]
[1771801148632,0.47958706,83.734,83.702,12.42243809]
[1771801149632,0.47958706,83.732,83.702,12.42243809]
[1771801151838,0.47958706,83.73,83.703,0.46142937]
[1771801152036,0.3684283,83.73,83.702,11.94714582]
[1771801152235,0.3684283,83.73,83.702,12.40857519]
[1771801153243,11.94329324,83.729,83.702,12.40857519]
[1771801153445,11.94329324,83.729,83.702,11.94714582]
[1771801154144,0.47958706,83.728,83.702,11.94714582]
[1771801154356,0.47958706,83.728,83.695,0.46142937]
[1771801154528,0.47958706,83.728,83.69,0.46142937]
[1771801155743,0.46788276,83.726,83.69,0.46142937]
[1771801157246,0.46788276,83.724,83.683,0.48281019]
[1771801162042,0.46788276,83.722,83.685,0.48281019]
[1771801163444,0.46788276,83.722,83.68,3.07173934]
[1771801163445,0.46788276,83.718,83.68,0.48281019]
[1771801163939,0.46788276,83.718,83.64,6.76557336]